bitfinex/quotes_BTCUSD_20220120
["timestamp","ask_amount","ask_price","bid_price","bid_amount"]
[1642655437933,0.00018107,41937.0,41936.0,0.09802078]
[1642655438879,0.01418107,41937.0,41936.0,0.00632489]
[1642655439080,0.52346176,41937.0,41936.0,0.00632489]
[1642655439477,1.12946304,41937.0,41936.0,0.00632489]
[1642655439676,1.56711219,41937.0,41936.0,0.00632489]
[1642655439877,2.17139692,41937.0,41936.0,0.00632489]
[1642655440076,2.183382,41937.0,41936.0,0.00632489]
[1642655440291,1.67738072,41937.0,41936.0,0.00632489]
[1642655440477,2.27014719,41937.0,41936.0,0.00032489]
[1642655440675,1.94349804,41937.0,41936.0,0.00032489]
[1642655441477,1.33673157,41937.0,41936.0,0.00032489]
[1642655441877,1.93257783,41937.0,41936.0,0.00032489]
[1642655442227,1.24190649,41937.0,41936.0,0.00032489]
[1642655442431,1.84875275,41937.0,41936.0,0.00032489]
[1642655442634,2.57161895,41937.0,41936.0,1.554e-05]
[1642655442834,0.0012586,41930.0,41924.0,6.876e-05]
[1642655443132,0.385406,41926.0,41923.0,0.00112297]
[1642655443330,0.1828836,41924.0,41923.0,0.00112297]
[1642655443529,0.6161896,41924.0,41923.0,0.00112297]
[1642655444128,0.6161896,41924.0,41921.0,0.01739666]
[1642655444329,0.6161896,41924.0,41921.0,0.01851952]
[1642655444330,0.2307836,41924.0,41921.0,0.01851952]
[1642655444536,0.2307836,41924.0,41922.0,0.00024066]
[1642655444729,0.2397836,41924.0,41922.0,0.00024066]
[1642655445131,0.0569,41924.0,41922.0,0.00024066]
[1642655446082,0.0479,41924.0,41922.0,0.00024066]
[1642655446683,0.0579,41924.0,41922.0,0.00024066]
[1642655447084,0.17781871,41923.0,41922.0,0.00024066]
[1642655447287,0.22571871,41923.0,41922.0,0.00024066]
[1642655449088,0.23571871,41923.0,41922.0,0.00024066]
[1642655449590,0.23585461,41923.0,41922.0,0.00052542]
[1642655450035,0.62126061,41923.0,41922.0,0.00052542]
[1642655450736,0.63126061,41923.0,41922.0,0.00052542]
[1642655451033,0.62126061,41923.0,41922.0,0.00052542]
[1642655452035,0.61126061,41923.0,41922.0,0.00052542]
[1642655452835,0.62126061,41923.0,41922.0,0.00052542]
[1642655454679,0.62926061,41923.0,41922.0,0.00052542]
[1642655454879,0.61926061,41923.0,41922.0,0.00052542]
[1642655456081,0.89666289,41923.0,41922.0,0.00052542]
[1642655456881,0.90566289,41923.0,41922.0,0.00052542]
[1642655457526,0.90690643,41923.0,41922.0,0.00052542]
[1642655458528,0.89790643,41923.0,41922.0,0.00052542]
[1642655458726,0.91090643,41923.0,41922.0,0.00052542]
[1642655459929,0.89790643,41923.0,41922.0,0.00052542]
[1642655460732,0.91090643,41923.0,41922.0,0.00052542]
[1642655461173,0.92281643,41923.0,41922.0,0.00052542]
[1642655461374,1.62013643,41923.0,41922.0,0.00052542]
[1642655461575,1.72013643,41923.0,41922.0,0.00052542]
[1642655462472,1.70713643,41923.0,41922.0,0.00052542]
[1642655462873,1.72113643,41923.0,41922.0,0.00052542]
[1642655464073,1.70713643,41923.0,41922.0,0.00052542]
[1642655464723,1.72113643,41923.0,41922.0,0.00052542]
[1642655464926,1.72113643,41923.0,41922.0,0.00045374]
[1642655466122,1.70713643,41923.0,41922.0,0.00045374]
[1642655466824,1.71913643,41923.0,41922.0,0.00045374]
[1642655468023,1.42173415,41923.0,41922.0,0.00045374]
[1642655468878,1.33373415,41923.0,41922.0,0.00045374]
[1642655470080,1.32173415,41923.0,41922.0,0.00045374]
[1642655470881,1.33473415,41923.0,41922.0,0.00045374]
[1642655472426,1.32173415,41923.0,41922.0,0.00045374]
[1642655472929,1.43473415,41923.0,41922.0,0.00045374]
[1642655474129,1.42173415,41923.0,41922.0,0.00045374]
[1642655474928,1.43473415,41923.0,41922.0,0.00045374]
[1642655476179,1.42173415,41923.0,41922.0,0.00045374]
[1642655476882,1.33473415,41923.0,41922.0,0.00045374]
[1642655477079,1.43473415,41923.0,41922.0,0.00045374]
[1642655478181,1.42173415,41923.0,41922.0,0.00045374]
[1642655478783,1.43473415,41923.0,41922.0,0.00045374]
[1642655480245,1.42173415,41923.0,41922.0,0.00045374]
[1642655480447,1.32173415,41923.0,41922.0,0.00045374]
[1642655480647,1.30858061,41923.0,41922.0,0.00045374]
[1642655480848,1.31958061,41923.0,41922.0,0.00045374]
[1642655481049,0.72038061,41923.0,41922.0,0.00045374]
[1642655481245,0.62226061,41923.0,41922.0,0.00045374]
[1642655482066,0.61126061,41923.0,41922.0,0.00045374]
[1642655482847,0.62326061,41923.0,41922.0,0.00045374]
[1642655484078,0.61126061,41923.0,41922.0,0.00045374]
[1642655484880,0.62426061,41923.0,41922.0,0.00045374]
[1642655486080,0.61126061,41923.0,41922.0,0.00045374]
[1642655486881,0.4334419,41923.0,41922.0,0.00045374]
[1642655487333,0.4444419,41923.0,41922.0,0.00045374]
[1642655487531,0.3965419,41923.0,41922.0,0.00045374]
[1642655488734,0.3855419,41923.0,41922.0,0.00045374]
[1642655489234,0.3965419,41923.0,41922.0,0.00045374]
[1642655489836,0.0111359,41923.0,41922.0,0.25363763]
[1642655490238,0.0111359,41923.0,41922.0,0.00045374]
[1642655491099,0.0001359,41923.0,41922.0,0.00045374]
[1642655491294,0.0081359,41923.0,41922.0,0.01445374]
[1642655492393,0.0081359,41923.0,41922.0,0.00045374]
[1642655492394,0.3855419,41923.0,41922.0,0.00045374]
[1642655493092,0.3854817,41923.0,41922.0,0.00045374]
[1642655493296,0.4044817,41923.0,41922.0,0.00045374]
[1642655494094,0.4523817,41923.0,41922.0,0.00045374]
[1642655494496,0.4333817,41923.0,41922.0,0.00045374]
[1642655495333,0.4543817,41923.0,41922.0,0.00045374]
[1642655496532,0.4333817,41923.0,41922.0,0.00045374]
[1642655497333,0.4483817,41923.0,41922.0,0.00045374]
[1642655498579,0.4333817,41923.0,41922.0,0.00045374]
[1642655499181,0.4483817,41923.0,41922.0,0.00045374]
[1642655499482,0.45526024,41923.0,41922.0,0.00045374]
[1642655501079,0.44026024,41923.0,41922.0,0.00045374]
[1642655501281,0.45526024,41923.0,41922.0,0.00045374]
[1642655503128,0.44026024,41923.0,41922.0,0.00045374]
[1642655503334,0.45526024,41923.0,41922.0,0.00045374]
[1642655504932,0.45217024,41923.0,41922.0,0.00045374]
[1642655505130,0.76175698,41923.0,41922.0,0.00045374]
[1642655505332,1.38346979,41923.0,41922.0,0.00045374]
[1642655505532,1.46560193,41923.0,41922.0,0.00045374]
[1642655505990,1.56560193,41923.0,41922.0,0.00045374]
[1642655506390,0.95888912,41923.0,41922.0,0.00045374]
[1642655506592,1.5506176,41923.0,41922.0,0.00045374]
[1642655507186,1.5636176,41923.0,41922.0,0.00045374]
[1642655507887,1.56362602,41923.0,41922.0,0.00045374]
[1642655508085,1.56485521,41923.0,41922.0,0.00045374]
[1642655508486,1.55185521,41923.0,41922.0,0.00045374]
[1642655509286,1.56985521,41923.0,41922.0,0.00045374]
[1642655509738,1.46985521,41923.0,41922.0,0.00045374]
[1642655509940,0.55353157,41923.0,41922.0,0.00045374]
[1642655510140,0.47139943,41923.0,41922.0,0.00045374]
[1642655510938,0.45948943,41923.0,41922.0,0.00045374]
[1642655511140,0.44148943,41923.0,41922.0,0.00045374]
[1642655511349,0.45248943,41923.0,41922.0,0.00045374]
[1642655511939,0.40458943,41923.0,41922.0,0.00045374]
[1642655512539,0.39358943,41923.0,41922.0,0.00045374]
[1642655513341,0.40558943,41923.0,41922.0,0.00045374]
[1642655515583,0.68003977,41923.0,41922.0,0.00045374]
[1642655516488,0.66803977,41923.0,41922.0,0.00045374]
[1642655516686,0.39358943,41923.0,41922.0,0.00045374]
[1642655517339,0.40558943,41923.0,41922.0,0.00045374]
[1642655518534,0.39358943,41923.0,41922.0,0.00045374]
[1642655519737,0.40558943,41923.0,41922.0,0.00045374]
[1642655520138,0.45348943,41923.0,41922.0,0.00045374]
[1642655520980,0.44148943,41923.0,41922.0,0.00045374]
[1642655521386,0.45248943,41923.0,41922.0,0.00045374]
[1642655522482,0.44148943,41923.0,41922.0,0.00045374]
[1642655523284,0.45248943,41923.0,41922.0,0.00045374]
[1642655524584,0.44148943,41923.0,41922.0,0.26063763]
[1642655524831,0.38680635,41923.0,41922.0,0.26063763]
[1642655525032,0.00140035,41923.0,41922.0,0.26063763]
[1642655525430,0.01140035,41923.0,41922.0,0.26963763]
[1642655525733,0.01140035,41923.0,41922.0,0.51963763]
[1642655525930,0.01140035,41923.0,41922.0,0.26963763]
[1642655526531,0.00140035,41923.0,41922.0,0.26063763]
[1642655527329,0.00940035,41923.0,41922.0,0.27263763]
[1642655528786,0.00140035,41923.0,41922.0,0.26063763]
[1642655529385,0.01140035,41923.0,41922.0,0.27763763]
[1642655530585,0.00140035,41923.0,41922.0,0.26063763]
[1642655531385,0.00740035,41923.0,41922.0,0.27663763]
[1642655532640,0.00140035,41923.0,41922.0,0.26063763]
[1642655533431,0.00840035,41923.0,41922.0,0.27563763]
[1642655534633,0.00140035,41923.0,41922.0,0.26063763]
[1642655535431,0.05330035,41923.0,41922.0,0.28063763]
[1642655536589,0.05330035,41923.0,41922.0,0.02045374]
[1642655536987,0.43470635,41923.0,41922.0,0.00045374]
[1642655537585,0.44970635,41923.0,41922.0,0.00045374]
[1642655538788,0.43470635,41923.0,41922.0,0.00045374]
[1642655539389,0.44670635,41923.0,41922.0,0.00045374]
[1642655540731,0.43470635,41923.0,41922.0,0.00045374]
[1642655541333,0.71593064,41923.0,41922.0,0.00045374]
[1642655542638,0.70393064,41923.0,41922.0,0.00045374]
[1642655543881,0.71293064,41923.0,41922.0,0.00045374]
[1642655545085,0.70393064,41923.0,41922.0,0.00045374]
[1642655545686,0.43470635,41923.0,41922.0,0.00045374]
[1642655545887,0.44770635,41923.0,41922.0,0.00045374]
[1642655547087,0.43470635,41923.0,41922.0,0.00045374]
[1642655547732,0.44670635,41923.0,41922.0,0.00045374]
[1642655549134,0.43470635,41923.0,41922.0,0.00045374]
[1642655549335,0.70618469,41923.0,41922.0,0.00045374]
[1642655549936,0.71818469,41923.0,41922.0,0.00045374]
[1642655550983,0.71818469,41923.0,41922.0,0.00038263]
[1642655551182,0.70618469,41923.0,41922.0,0.00038263]
[1642655551388,1.31292159,41923.0,41922.0,0.00038263]
[1642655551780,1.32892159,41923.0,41922.0,0.00038263]
[1642655552985,1.54678559,41923.0,41922.0,0.00038263]
[1642655553382,1.37690791,41923.0,41922.0,0.00038263]
[1642655553883,1.38990791,41923.0,41922.0,0.00038263]
[1642655554384,1.55935991,41923.0,41922.0,0.00038263]
[1642655554586,1.38990352,41923.0,41922.0,0.00056211]
[1642655555030,1.37690352,41923.0,41922.0,0.00056211]
[1642655555231,1.54576252,41923.0,41922.0,0.00056211]
[1642655555432,1.37657849,41923.0,41922.0,0.00056211]
[1642655555633,1.54590447,41923.0,41922.0,0.00056211]
[1642655555836,1.55790447,41923.0,41922.0,0.00056211]
[1642655556745,0.385406,41919.0,41905.0,0.931]
[1642655556939,0.00678816,41907.0,41902.0,0.5]
[1642655557136,0.08051816,41907.0,41906.0,0.00027504]
[1642655557338,0.12841816,41907.0,41906.0,0.00027504]
[1642655557733,0.24351099,41906.0,41902.0,0.0003438]
[1642655557950,0.0479,41905.0,41902.0,0.0003438]
[1642655558338,0.0479,41905.0,41902.0,0.00098732]
[1642655558780,0.0479,41905.0,41903.0,0.00032661]
[1642655558983,0.27881383,41904.0,41903.0,0.00032661]
[1642655559182,0.32671383,41904.0,41903.0,0.00032661]
[1642655559390,0.32688278,41904.0,41903.0,0.00032661]
[1642655559582,0.71228878,41904.0,41903.0,0.00032661]
[1642655559781,0.71228878,41904.0,41901.0,0.01608638]
[1642655559782,0.72128878,41904.0,41902.0,0.0003438]
[1642655559994,0.67562699,41903.0,41902.0,0.0003438]
[1642655560284,0.72352699,41903.0,41902.0,0.0003438]
[1642655561381,0.72352699,41903.0,41902.0,0.10752543]
[1642655561584,0.72352699,41903.0,41902.0,0.0003438]
[1642655561783,0.73252699,41903.0,41902.0,0.0003438]
[1642655562242,0.73252699,41903.0,41902.0,0.10752543]
[1642655562642,0.73252699,41903.0,41902.0,0.0003438]
[1642655562845,0.73411663,41903.0,41902.0,0.0003438]
[1642655563041,0.72511663,41903.0,41902.0,0.0003438]
[1642655563844,0.73411663,41903.0,41902.0,0.0003438]
[1642655564443,0.73424518,41903.0,41902.0,0.00059307]
[1642655565045,0.72524518,41903.0,41902.0,0.00059307]
[1642655565846,0.73424518,41903.0,41902.0,0.00059307]
[1642655566486,0.44402419,41903.0,41902.0,0.00059307]
[1642655567282,0.43502419,41903.0,41902.0,0.00059307]
[1642655567881,0.44802419,41903.0,41902.0,0.00059307]
[1642655568784,0.44802419,41903.0,41901.0,0.01103592]
[1642655569183,0.04961819,41903.0,41901.0,0.01103592]
[1642655569384,0.04961819,41903.0,41902.0,0.00024927]
[1642655569838,0.09761819,41903.0,41902.0,0.00024927]
[1642655571038,0.04961819,41903.0,41902.0,0.00024927]
[1642655571945,0.09461819,41903.0,41902.0,0.00024927]
[1642655572142,0.09461819,41903.0,41902.0,0.30024927]
[1642655572342,0.04671819,41903.0,41902.0,0.30024927]
[1642655573142,0.00171819,41903.0,41902.0,0.30024927]
[1642655573998,0.01471819,41903.0,41902.0,0.30024927]
[1642655574191,0.01471819,41903.0,41902.0,0.60024927]
[1642655575390,0.00171819,41903.0,41902.0,0.60024927]
[1642655575789,0.02071819,41903.0,41902.0,0.60024927]
[1642655576793,0.02071819,41903.0,41902.0,0.30024927]
[1642655577011,0.02071819,41903.0,41902.0,0.00024927]
[1642655577242,0.00171819,41903.0,41902.0,0.00024927]
[1642655577842,0.00471819,41903.0,41902.0,0.00024927]
[1642655578043,0.05261819,41903.0,41902.0,0.00024927]
[1642655579249,0.04961819,41903.0,41902.0,0.00024927]
[1642655579445,0.04961819,41903.0,41901.0,0.01132673]
[1642655579845,0.05561819,41903.0,41901.0,0.01132673]
[1642655581086,0.04961819,41903.0,41901.0,0.01132673]
[1642655581898,0.05161819,41903.0,41901.0,0.01132673]
[1642655583190,0.04961819,41903.0,41901.0,0.01132673]
[1642655584091,0.05161819,41903.0,41901.0,0.01132673]
[1642655585135,0.05161819,41903.0,41901.0,0.01841332]
[1642655585336,0.05161819,41903.0,41901.0,0.01132673]
[1642655585534,0.00371819,41903.0,41901.0,0.01132673]
[1642655585735,0.00171819,41903.0,41901.0,0.01633153]
[1642655585935,0.00471819,41903.0,41901.0,0.01633153]
[1642655586134,0.00471819,41903.0,41901.0,0.06406195]
[1642655586536,0.00471819,41903.0,41901.0,0.11406195]
[1642655586737,0.00471819,41903.0,41901.0,0.06406195]
[1642655586938,0.00471819,41903.0,41901.0,0.01633153]
[1642655587139,0.00171819,41903.0,41901.0,0.01633153]
[1642655587937,0.00671819,41903.0,41901.0,0.01633153]
[1642655588235,0.00671819,41903.0,41901.0,0.06406138]
[1642655588489,0.00671819,41903.0,41901.0,0.11406138]
[1642655588690,0.00671819,41903.0,41901.0,0.10905658]
[1642655589090,0.00671819,41903.0,41902.0,1.54924807]
[1642655589291,0.005,41903.0,41902.0,1.70924807]
[1642655589496,0.005,41903.0,41902.0,1.77145888]
[1642655589697,0.00025556,41904.0,41902.0,1.75953888]
[1642655589891,0.00025556,41904.0,41902.0,1.80953888]
[1642655590094,0.00019524,41904.0,41903.0,0.05]
[1642655590291,0.00019524,41904.0,41903.0,0.153242]
[1642655591895,0.00019524,41904.0,41903.0,0.068]
[1642655592936,0.00019524,41904.0,41903.0,0.06936073]
[1642655593136,0.00019524,41904.0,41903.0,0.05136073]
[1642655593339,0.00019524,41904.0,41903.0,0.43676673]
[1642655594538,0.18017456,41913.0,41903.0,0.43708878]
[1642655594740,0.18017456,41913.0,41907.0,0.059658]
[1642655595138,0.385406,41912.0,41907.0,0.059658]
[1642655595543,0.00015471,41911.0,41908.0,0.00099863]
[1642655595986,0.00013752,41910.0,41908.0,0.00099863]
[1642655596385,0.014,41912.0,41908.0,0.00099863]
[1642655596386,0.00012033,41909.0,41908.0,0.00099863]
[1642655596589,0.00012033,41909.0,41907.0,0.059658]
[1642655596885,0.00010314,41908.0,41907.0,0.00099875]
[1642655597385,0.00015471,41908.0,41907.0,0.00099875]
[1642655597787,0.00015471,41908.0,41906.0,0.38763351]
[1642655597986,0.01315471,41908.0,41906.0,0.38763351]
[1642655598185,8.595e-05,41907.0,41906.0,0.38763351]
[1642655598785,8.595e-05,41907.0,41906.0,0.169316]
[1642655600043,0.00808595,41907.0,41906.0,0.169316]
[1642655600440,0.00308595,41907.0,41906.0,0.169316]
[1642655601245,0.20480276,41914.0,41906.0,0.05]
[1642655601444,0.20480276,41914.0,41904.0,0.05]
[1642655601445,0.385406,41913.0,41904.0,0.05]
[1642655601645,0.28335845,41912.0,41904.0,0.00099873]
[1642655601844,0.385406,41911.0,41904.0,0.00099873]
[1642655602041,6.876e-05,41911.0,41904.0,0.01799873]
[1642655602642,6.876e-05,41911.0,41904.0,0.017]
[1642655602847,6.876e-05,41911.0,41905.0,0.00099872]
[1642655603043,6.876e-05,41911.0,41906.0,0.00135681]
[1642655603244,0.385406,41910.0,41906.0,0.00135681]
[1642655603891,0.385406,41910.0,41906.0,0.00635554]
[1642655604086,0.399406,41910.0,41906.0,0.00635554]
[1642655604487,0.399406,41910.0,41908.0,0.30175059]
[1642655604687,0.399406,41910.0,41908.0,0.36141159]
[1642655604986,0.399406,41910.0,41908.0,0.41141159]
[1642655605790,0.385406,41910.0,41908.0,0.45913736]
[1642655606389,0.404406,41910.0,41908.0,0.45913736]
[1642655606889,0.404406,41910.0,41908.0,0.05998187]
[1642655607089,0.404406,41910.0,41908.0,0.00032087]
[1642655607343,0.404406,41910.0,41908.0,0.05998187]
[1642655607742,0.404406,41910.0,41908.0,0.00032087]
[1642655607947,0.385406,41910.0,41909.0,0.00135288]
[1642655608242,0.399406,41910.0,41909.0,0.00135288]
[1642655609541,0.385406,41910.0,41909.0,0.00167351]
[1642655610242,0.400406,41910.0,41909.0,0.00167351]
[1642655611489,0.385406,41910.0,41909.0,0.00167351]
[1642655612292,0.400406,41910.0,41909.0,0.00167351]
[1642655614101,0.385406,41910.0,41909.0,0.00167351]
[1642655614295,0.403406,41910.0,41909.0,0.00167351]
[1642655615643,0.385406,41910.0,41909.0,0.00167351]
[1642655616244,0.419406,41910.0,41909.0,0.00705404]
[1642655616746,0.419406,41910.0,41909.0,0.00167351]
[1642655616942,0.419406,41910.0,41909.0,0.00967274]
[1642655617142,0.034,41910.0,41909.0,0.00167351]
[1642655618243,0.031,41910.0,41909.0,0.00267351]
[1642655619293,0.416406,41910.0,41909.0,0.00267351]
[1642655619596,0.385406,41910.0,41909.0,0.00167351]
[1642655620390,0.441406,41910.0,41909.0,0.00167351]
[1642655621590,0.385406,41910.0,41909.0,0.00167351]
[1642655621791,6.876e-05,41911.0,41909.0,0.00167351]
[1642655622246,0.03906876,41911.0,41909.0,0.00167351]
[1642655623647,6.876e-05,41911.0,41909.0,0.00167351]
[1642655624649,0.385406,41910.0,41909.0,0.00167351]
[1642655626292,0.414406,41910.0,41909.0,0.00367351]
[1642655627591,0.385406,41910.0,41909.0,0.00167351]
[1642655627792,6.876e-05,41911.0,41909.0,0.00167351]
[1642655628392,0.02906876,41911.0,41909.0,0.00367351]
[1642655629743,6.876e-05,41911.0,41909.0,0.00167351]
[1642655630442,0.02906876,41911.0,41909.0,0.00367351]
[1642655631545,6.876e-05,41911.0,41909.0,0.00167351]
[1642655632542,0.385406,41910.0,41909.0,0.00267351]
[1642655633798,0.385406,41910.0,41909.0,0.00167351]
[1642655634504,0.406406,41910.0,41909.0,0.00467351]
[1642655635602,0.385406,41910.0,41909.0,0.00167351]
[1642655636300,0.385406,41910.0,41909.0,0.00767351]
[1642655636501,0.398406,41910.0,41909.0,0.00767351]
[1642655637645,0.385406,41910.0,41909.0,0.00167351]
[1642655638444,0.405406,41910.0,41909.0,0.00567351]
[1642655639445,0.405406,41910.0,41909.0,0.01134999]
[1642655639647,0.405406,41910.0,41909.0,0.01183078]
[1642655640247,0.385406,41910.0,41909.0,0.00167351]
[1642655640447,0.406406,41910.0,41909.0,0.00467351]
[1642655641693,0.385406,41910.0,41909.0,0.00167351]
[1642655641900,6.876e-05,41911.0,41909.0,0.00167351]
[1642655642096,6.876e-05,41911.0,41909.0,0.05167351]
[1642655642492,0.01206876,41911.0,41909.0,0.00267351]
[1642655642893,0.01206876,41911.0,41909.0,0.05267351]
[1642655643495,0.01206876,41911.0,41909.0,0.00267351]
[1642655643692,0.01206876,41911.0,41909.0,0.00167351]
[1642655643693,6.876e-05,41911.0,41909.0,0.00167351]
[1642655644501,0.01906876,41911.0,41909.0,0.00567351]
[1642655645645,6.876e-05,41911.0,41909.0,0.00167351]
[1642655645843,1.15672687,41916.0,41909.0,0.00167351]
[1642655646044,0.433306,41915.0,41911.0,0.14317941]
[1642655646344,0.37267974,41915.0,41911.0,0.20283641]
[1642655646547,0.37267974,41915.0,41911.0,0.25283641]
[1642655647149,0.37267974,41915.0,41911.0,0.25383506]
[1642655647949,0.37267974,41915.0,41913.0,0.00134765]
[1642655648798,0.39767974,41915.0,41913.0,0.00134765]
[1642655649498,0.39767974,41915.0,41914.0,0.00031944]
[1642655649902,0.37267974,41915.0,41914.0,0.00031944]
[1642655650300,0.37267974,41915.0,41914.0,0.00802483]
[1642655650501,0.38867974,41915.0,41914.0,0.00031944]
[1642655650701,0.38867974,41915.0,41914.0,0.05031944]
[1642655651701,0.37267974,41915.0,41914.0,0.05031944]
[1642655651903,0.37267974,41915.0,41914.0,0.00031944]
[1642655652545,0.38867974,41915.0,41914.0,0.00031944]
[1642655653041,0.38867974,41915.0,41914.0,0.00166579]
[1642655653345,0.99371306,41915.0,41914.0,0.00166579]
[1642655653541,1.07888043,41915.0,41914.0,0.00166579]
[1642655653740,1.06288043,41915.0,41914.0,0.00166579]
[1642655654341,1.07488043,41915.0,41914.0,0.00166579]
[1642655655343,0.46984711,41915.0,41914.0,0.00166579]
[1642655655544,0.38467974,41915.0,41914.0,0.00166579]
[1642655655744,0.37267974,41915.0,41914.0,0.00166579]
[1642655656404,0.38767974,41915.0,41914.0,0.00166579]
[1642655656618,0.33977974,41915.0,41914.0,0.31352926]
[1642655656906,0.01506876,41915.0,41914.0,0.31352926]
[1642655657107,0.00091827,41917.0,41915.0,0.35]
[1642655657313,0.00091827,41917.0,41916.0,0.23983778]
[1642655657512,0.60562406,41921.0,41917.0,0.63614127]
[1642655657707,0.60562406,41921.0,41917.0,0.6724016]
[1642655657708,0.00059074,41921.0,41917.0,0.6724016]
[1642655657905,8.595e-05,41920.0,41917.0,0.6724016]
[1642655658106,8.595e-05,41920.0,41918.0,0.05]
[1642655658306,6.876e-05,41919.0,41918.0,0.05]
[1642655658505,6.876e-05,41919.0,41918.0,0.29288204]
[1642655659947,6.876e-05,41919.0,41918.0,0.40252404]
[1642655660446,0.06506876,41919.0,41918.0,0.40352404]
[1642655662252,6.876e-05,41919.0,41918.0,0.35252404]
[1642655662463,0.00206876,41919.0,41918.0,0.35352404]
[1642655663054,0.00206876,41919.0,41918.0,0.35589685]
[1642655663497,0.00206876,41919.0,41918.0,0.11301481]
[1642655663699,0.00206876,41919.0,41918.0,0.11201481]
[1642655663700,0.04796876,41919.0,41918.0,0.11201481]
[1642655663898,0.43339776,41919.0,41918.0,0.00237281]
[1642655664100,0.43339776,41919.0,41918.0,0.05237281]
[1642655664298,0.43339776,41919.0,41918.0,0.00237281]
[1642655664497,0.43339776,41919.0,41918.0,0.00267088]
[1642655664498,0.48539776,41919.0,41918.0,0.00267088]
[1642655665597,0.50164776,41919.0,41918.0,0.00267088]
[1642655665800,0.44964776,41919.0,41918.0,0.00267088]
[1642655666497,0.46464776,41919.0,41918.0,0.00267088]
[1642655667854,0.44964776,41919.0,41918.0,0.00154781]
[1642655668453,0.46464776,41919.0,41918.0,0.00154781]
[1642655668652,0.5487569,41919.0,41918.0,0.00154781]
[1642655669352,0.6487569,41919.0,41918.0,0.00154781]
[1642655669557,0.7654639,41919.0,41918.0,0.00154781]
[1642655669753,0.64693077,41919.0,41918.0,0.00154781]
[1642655669952,0.75101768,41919.0,41918.0,0.00154781]
[1642655670153,1.25551878,41919.0,41918.0,0.00154781]
[1642655670354,1.25784308,41919.0,41918.0,0.00154781]
[1642655670660,1.26380298,41919.0,41918.0,0.00918161]
[1642655670854,1.37527536,41919.0,41918.0,0.00918161]
[1642655671603,1.37527536,41919.0,41913.0,0.00121341]
[1642655671604,0.02461,41914.0,41913.0,0.00121341]
[1642655671801,0.89269054,41914.0,41913.0,0.00121341]
[1642655672000,1.07679968,41914.0,41913.0,0.00121341]
[1642655672302,0.69723414,41912.0,41911.0,0.00121339]
[1642655672498,2.36401611,41912.0,41911.0,0.00121339]
[1642655672699,2.09812525,41912.0,41911.0,0.00128215]
[1642655673307,2.09812525,41912.0,41911.0,6.876e-05]
[1642655673501,1.75089111,41912.0,41911.0,6.876e-05]
[1642655673699,1.75089111,41912.0,41909.0,0.00121342]
[1642655673902,0.385429,41910.0,41909.0,0.00121342]
[1642655674201,0.62219199,41910.0,41909.0,0.00131656]
[1642655674403,0.69786899,41910.0,41909.0,0.00131656]
[1642655674602,0.69786899,41910.0,41909.0,0.00010314]
[1642655675044,0.69786899,41910.0,41907.0,0.00121345]
[1642655675248,0.39221507,41908.0,41907.0,0.00121345]
[1642655675446,0.44011507,41908.0,41907.0,0.00121345]
[1642655675647,0.67445558,41908.0,41907.0,0.00135097]
[1642655675852,0.67445558,41908.0,41907.0,0.00559924]
[1642655676049,0.67445558,41908.0,41907.0,0.00013752]
[1642655676447,0.69145558,41908.0,41906.0,0.00551233]
[1642655676647,0.01625,41907.0,41906.0,0.00551233]
[1642655676849,0.449579,41907.0,41906.0,0.00551233]
[1642655678499,0.481489,41907.0,41906.0,0.00551233]
[1642655678699,0.481489,41907.0,41906.0,0.00015471]
[1642655678895,0.481489,41907.0,41906.0,0.00651886]
[1642655679095,0.453329,41907.0,41905.0,0.35372127]
[1642655679298,0.02,41907.0,41906.0,0.70015471]
[1642655679596,0.00678607,41908.0,41906.0,0.70045526]
[1642655679796,0.00122154,41914.0,41906.0,0.70045526]
[1642655679998,0.00122154,41914.0,41908.0,0.33049612]
[1642655680196,0.00122154,41914.0,41908.0,0.38049612]
[1642655680397,0.00122154,41914.0,41909.0,0.07168989]
[1642655680596,0.00122154,41914.0,41910.0,0.109658]
[1642655680796,0.00122154,41914.0,41910.0,0.10974395]
[1642655681000,0.02077832,41917.0,41911.0,6.876e-05]
[1642655681196,0.385429,41916.0,41911.0,6.876e-05]
[1642655681997,0.385429,41916.0,41911.0,0.00119719]
[1642655682244,0.385429,41916.0,41911.0,0.38091954]
[1642655682447,0.397429,41916.0,41911.0,0.38091954]
[1642655683051,0.01625,41915.0,41913.0,0.00169615]
[1642655683247,0.385429,41914.0,41913.0,0.00169615]
[1642655683652,0.46948889,41914.0,41913.0,0.00169615]
[1642655683947,0.385429,41914.0,41913.0,0.00169615]
[1642655684148,0.49764725,41914.0,41913.0,0.00169615]
[1642655684349,0.64554725,41914.0,41913.0,0.00169615]
[1642655684548,0.65654725,41914.0,41913.0,0.00169615]
[1642655685248,0.7174441,41914.0,41913.0,0.00169615]
[1642655685849,0.7064441,41914.0,41913.0,0.00169615]
[1642655686101,0.95816004,41914.0,41913.0,0.00169615]
[1642655686600,0.96916004,41914.0,41913.0,0.00169615]
[1642655686805,0.7174441,41914.0,41913.0,0.00169615]
[1642655686998,1.57360829,41914.0,41913.0,0.00169615]
[1642655687803,1.56260829,41914.0,41911.0,0.00176491]
[1642655688003,1.56260829,41914.0,41911.0,0.00288184]
[1642655688004,0.57275055,41912.0,41911.0,0.00288184]
[1642655688304,0.62065055,41912.0,41911.0,0.00288184]
[1642655688503,0.74256055,41912.0,41911.0,0.00288184]
[1642655688910,1.08774378,41912.0,41911.0,0.00176491]
[1642655689303,1.08774378,41912.0,41911.0,0.00806145]
[1642655689505,0.82656117,41912.0,41911.0,0.00836111]
[1642655689946,0.81656117,41912.0,41911.0,0.00836111]
[1642655690348,0.73256055,41912.0,41911.0,0.00836111]
[1642655690549,0.74356055,41912.0,41911.0,0.00836111]
[1642655690749,0.74356055,41912.0,41911.0,0.00206457]
[1642655691750,0.73256055,41912.0,41911.0,0.00206457]
[1642655692553,0.74356055,41912.0,41911.0,0.00206457]
[1642655693796,0.73256055,41912.0,41911.0,0.00206457]
[1642655693997,0.73256055,41912.0,41911.0,0.00711298]
[1642655694596,0.75290988,41912.0,41911.0,0.00711298]
[1642655695895,0.74190988,41912.0,41911.0,0.00711298]
[1642655696497,0.75290988,41912.0,41911.0,0.00206457]
[1642655698358,0.74190988,41912.0,41911.0,0.00206457]
[1642655698558,0.75290988,41912.0,41911.0,0.00206457]
[1642655699363,0.64099988,41912.0,41911.0,0.00206457]
[1642655699571,0.65290988,41912.0,41911.0,0.00206457]
[1642655699860,0.64190988,41912.0,41911.0,0.00206457]
[1642655700260,0.46137349,41912.0,41911.0,0.00206457]
[1642655700661,0.57337349,41912.0,41911.0,0.00206457]
[1642655701101,0.46146349,41912.0,41911.0,0.00206457]
[1642655701902,0.44946349,41912.0,41911.0,0.00206457]
[1642655702110,0.40156349,41912.0,41911.0,0.00206457]
[1642655702302,0.01613449,41912.0,41911.0,0.00206457]
[1642655702501,0.02713449,41912.0,41911.0,0.00206457]
[1642655702900,0.02713449,41912.0,41911.0,0.00332502]
[1642655704506,0.02713449,41912.0,41911.0,0.02232502]
[1642655704750,0.02613449,41912.0,41911.0,0.02232502]